Cogmind - Beta 15 @@@ ROGUE MODE // 2025.05.30 @ 17:28:56 Player: Havel Result: Destroyed by G-47 Trooper with Particle Gun Performance ------------- Evolutions (2) 1000 Regions Visited (6) 1200 Robots Destroyed (171) 855 Value Destroyed (3576) 3576 Prototype IDs (8) 160 Alien Tech Used (0) 0 Bonus (766) 766 TOTAL SCORE: 7557 Bonus ------- High Alert Combat Kills 285 Follower Combat Kills 181 Aligned with FarCom 300 Cogmind --------- Core Integrity 0/550 Matter 280/300 Energy 26/280 System Corruption 1% Temperature Cool (27) Movement Treading (170) Location -8/Storage Parts ------- > --- POWER (1) -------- Cooled Ion Engine > --- PROPULSION (3) --- Armored Treads > --- UTILITY (4) ------ Power Amplifier Advanced Targeting Computer Remote Shield > --- WEAPON (3) ------- Advanced Beam Rifle Katana > --- INVENTORY (5) ---- Cooled Ion Engine Armored Wheel Gravity Neutralizer Heavy Mace Peak State ------------ > --- POWER ------------ Cooled Ion Engine > --- PROPULSION ------- Armored Treads Armored Treads Armored Treads > --- UTILITY ---------- Small Storage Unit Gravity Neutralizer Advanced Targeting Computer Remote Shield > --- WEAPON ----------- Advanced Beam Rifle Improved Assault Rifle Katana > --- INVENTORY -------- Cooled Ion Engine Cooled Ion Engine Armored Treads Armored Treads Armored Wheel Power Amplifier Remote Shield Heavy Mace [Rating: 39] Favorites ----------- Power Deuterium Engine Engine Deuterium Engine Power Core Light Nuclear Core Propulsion Wheel Treads Armored Treads Leg VSS Leg Wheel Wheel Utility Small Storage Unit Device Improved Heat Sink Storage Small Storage Unit Processor Advanced Targeting Computer Protection Core Shielding Weapon Particle Cannon Energy Gun Advanced Beam Rifle Energy Cannon Particle Cannon Ballistic Gun Light Assault Rifle Ballistic Cannon Light Cannon Launcher Grenade Launcher Impact Weapon Heavy Hammer Slashing Weapon Katana Special Melee Weapon Datajack Build | -11 -10 -10 -10 -9 -8 -8 ------- Run | Yrd Mat Min Exi Min Mat Sto Slots Evolved 4 | . . . . . 4 . Power . | . . . . . . . Propulsion 1 | . . . . . 1 . Utility 2 | . . . . . 2 . Weapon 1 | . . . . . 1 . Parts Attached 78 | 10 19 . . 2 26 21 Power 11 | 1 1 . . 1 4 4 Engine 9 | 1 1 . . 1 2 4 Core 2 | . . . . . 2 . Reactor . | . . . . . . . Propulsion 20 | 4 4 . . . 7 5 Treads 8 | 2 . . . . 1 5 Leg 4 | . . . . . 4 . Wheel 8 | 2 4 . . . 2 . Hover . | . . . . . . . Flight . | . . . . . . . Utility 19 | 2 2 . . 1 8 6 Device 10 | 1 2 . . . 3 4 Storage 2 | 1 . . . . 1 . Processor 2 | . . . . . 1 1 Hackware . | . . . . . . . Protection 5 | . . . . 1 3 1 Artifact . | . . . . . . . Weapon 28 | 3 12 . . . 7 6 Energy Gun 5 | 1 . . . . 1 3 Energy Cannon 8 | . 4 . . . 4 . Ballistic Gun 8 | 2 3 . . . 1 2 Ballistic Cannon 1 | . 1 . . . . . Launcher 1 | . 1 . . . . . Special Weapon . | . . . . . . . Impact Weapon 3 | . 2 . . . 1 . Slashing Weapon 1 | . . . . . . 1 Piercing Weapon . | . . . . . . . Special Melee Weapon 1 | . 1 . . . . . Unidentified Prototypes 8 | . . . . . 3 5 Parts Lost 32 | . 4 . . . 14 14 Power 6 | . 1 . . . 3 2 Propulsion 10 | . 1 . . . 5 4 Utility 9 | . . . . . 3 6 Weapon 7 | . 2 . . . 3 2 Highest Loss Streak 5 | . 2 . . . 5 5 To Critical Strikes . | . . . . . . . Average Backups 7 | 3 6 8 7 7 6 7 Power 1 | . . 1 1 1 . 2 Propulsion 1 | 1 . 1 . 1 . 2 Utility 2 | . 1 2 2 2 3 1 Weapon 2 | . 3 4 4 3 2 1 Tool/Special . | . . . . . . . Unused Backups 30 | . 16 . . 2 6 6 Power 5 | . 2 . . 1 . 2 Propulsion 6 | . 2 . . . 2 2 Utility 12 | . 8 . . . 4 . Weapon 7 | . 4 . . 1 . 2 Tool/Special . | . . . . . . . Average Slot Usage (%) 96 | . 98 100 100 100 95 93 Engine 9 | . 14 14 14 14 4 8 Core 1 | . . . . . 3 . Treads 7 | . . . . . 2 24 Leg 5 | . . . . . 15 . Wheel 13 | . 26 28 28 28 6 . Device 9 | . 13 14 14 1 10 5 Storage 10 | . 14 14 14 14 9 8 Processor 2 | . . . . . . 6 Protection 9 | . . . . 12 15 13 Energy Gun 3 | . . . . . . 13 Energy Cannon 11 | . 8 14 26 14 16 . Ballistic Gun 1 | . 4 . . . . 1 Impact Weapon 6 | . 7 14 1 14 8 5 Slashing Weapon 1 | . . . . . . 3 Peak Build Rating 39 | 9 11 11 11 11 32 39 Average Rating 20 | 5 10 11 11 10 25 31 On Entrance 10 | . 9 11 11 11 10 19 Naked Turns . | . . . . . . . Heaviest Build 39 | 13 20 17 18 18 39 31 Greatest Support 72 | 40 20 20 20 20 41 72 Greatest Overweight (x) 10 | . 1 . . . 10 3 Average Overweight (x) . | . . . . . . . Largest Inventory Capacity 8 | 8 8 8 8 8 8 8 Average Capacity 7 | 5 8 8 8 8 8 7 Most Carried 8 | 7 8 8 8 8 8 8 Average Carried 7 | 3 6 8 7 7 7 7 Final Capacity 8 | 8 8 8 8 8 8 5 Final Carried 8 | 5 8 8 8 8 5 4 Class Distribution -------------------- 100% | Mutant Dominant Class ---------------- Mutant | -10/Materials Mutant | -10/Mines Mutant | -10/Exiles Mutant | -9/Mines Mutant | -8/Materials Mutant | -8/Storage Resources | -11 -10 -10 -10 -9 -8 -8 ----------- Run | Yrd Mat Min Exi Min Mat Sto Matter Collected 1394 | 323 481 31 . 49 309 201 Remotely . | . . . . . . . Salvage Created 6036 | 147 991 . . 407 2622 1869 Parts 193 | 12 49 . . 6 48 78 Haulers Intercepted 11 | . 2 . . . 4 5 Recyclers Shooed 9 | 2 . . . . 6 1 Parts Field Recycled . | . . . . . . . Retrieved Matter . | . . . . . . . Parts Self-Destructed . | . . . . . . . Prevented . | . . . . . . . Kills | -11 -10 -10 -10 -9 -8 -8 ------- Run | Yrd Mat Min Exi Min Mat Sto Combat Hostiles Destroyed 76 | . 16 . . 5 28 27 Melee 41 | . 5 . . 3 11 22 Guns 1 | . . . . . . 1 Cannons 7 | . 5 . . . 2 . AOE 5 | . 5 . . . . . Classes Destroyed 15 | 3 6 . . . 5 1 Worker 30 | 2 4 . . 3 16 5 Builder 14 | . 5 . . . 8 1 Tunneler 11 | 3 5 . . 3 . . Hauler 11 | . 2 . . . 4 5 Recycler 19 | 1 3 . . 3 8 4 Mechanic 1 | . . . . . 1 . Operator 4 | . 2 . . . 2 . Watcher 5 | . 2 . . . 2 1 Swarmer 8 | . 3 . . 3 . 2 Grunt 46 | . 13 . . 2 21 10 Brawler 4 | . . . . . 1 3 Duelist 3 | . . . . . 1 2 Protector 2 | . . . . . . 2 Sentry 12 | . . . . . 4 8 Hunter 1 | . . . . . 1 . Best Kill Streak 14 | 2 11 . . 3 14 6 Combat Bots Only 4 | . 3 . . 3 3 4 Max Kills in Single Turn 2 | 1 2 . . 1 1 1 Gunslinging . | . . . . . . . Exploded 1 | . 1 . . . . . Melee 1 | . 1 . . 1 1 1 Uniques/NPCs Destroyed . | . . . . . . . Combat | -11 -10 -10 -10 -9 -8 -8 -------- Run | Yrd Mat Min Exi Min Mat Sto Hostile Shots Fired 541 | . 56 . . 21 251 213 Missed 151 | . 21 . . 5 70 55 Hits 390 | . 35 . . 16 181 158 Melee 28 | . . . . . 6 22 Projectile 362 | . 35 . . 16 175 136 AOE 1 | . . . . . 1 . Critical Strikes 17 | . . . . . 9 8 Actively Blocked 2 | . . . . . 1 1 Damage Taken 6169 | . 623 . . 147 2882 2517 Core 741 | . 140 . . 38 400 163 Absorbed by Shields 200 | . . . . . . 200 Redirected to Shielding 97 | . . . . . 82 15 Regen/Repaired (Parts) 46 | . . . . . 46 . Core Remaining (%) 64 | 100 . . . 28 . . Volleys Fired 84 | 19 42 . 6 1 11 5 Largest 2 | 2 2 . 2 1 2 2 Hottest 136 | 40 136 . 136 68 136 122 Shots Fired 139 | 38 61 . 9 1 22 8 Gun 50 | 38 4 . . . . 8 Cannon 78 | . 46 . 9 1 22 . Launcher 11 | . 11 . . . . . Special . | . . . . . . . Kinetic 73 | 38 35 . . . . . Thermal 55 | . 15 . 9 1 22 8 Explosive 11 | . 11 . . . . . Electromagnetic . | . . . . . . . Robot Hit Streak 8 | 8 7 . . . 3 3 Robot Miss Streak 3 | 3 2 . . . 1 1 Penetration Max . | . . . . . . . Secondary Targets . | . . . . . . . Shots Hit Robots 378 | 24 71 . . 19 152 112 Core Hits 102 | 11 32 . . 4 24 31 Critical Kills 3 | . . . . . 3 . Critical Parts Destroyed 33 | . 5 . . 3 18 7 Critical Strikes 43 | . 8 . . 3 22 10 Blast 3 | . 3 . . . . . Smash 37 | . 5 . . 3 22 7 Sever 3 | . . . . . . 3 Melee Attacks 377 | . 45 . . 22 173 137 Impact 306 | . 38 . . 22 173 73 Slashing 64 | . . . . . . 64 Piercing . | . . . . . . . Sneak Attacks 89 | . 18 . . 8 44 19 Combat Hostiles 3 | . . . . . 3 . Follow-up Attacks . | . . . . . . . Damage Inflicted 15713 | 208 2673 . . 1104 7198 4530 Guns 330 | 208 32 . . . . 90 Cannons 818 | . 568 . . . 250 . Explosions 615 | . 615 . . . . . Melee 13950 | . 1458 . . 1104 6948 4440 Ramming . | . . . . . . . Kinetic 624 | 208 416 . . . . . Thermal 524 | . 184 . . . 250 90 Explosive 615 | . 615 . . . . . Electromagnetic . | . . . . . . . Impact 12191 | . 1458 . . 1104 6948 2681 Slashing 1759 | . . . . . . 1759 Piercing . | . . . . . . . Highest Corruption 1 | . . . . . . 1 Average Corruption 1 | . . . . . . 1 Corruption Purged . | . . . . . . . Corruption Blocked . | . . . . . . . Effects 6 | . . . . . . 6 Message Errors 2 | . . . . . . 2 Matter Fused 2 | . . . . . . 2 Energy Discharges 1 | . . . . . . 1 Misfires 1 | . . . . . . 1 Overload Shots . | . . . . . . . Overflow Damage 4719 | . 780 . . 504 2320 1115 Projectiles 25 | . 11 . . . 14 . Explosions 122 | . 122 . . . . . Melee 4572 | . 647 . . 504 2306 1115 Knockbacks 62 | . 12 . . 6 35 9 Impact 58 | . 9 . . 6 34 9 Kinetic 3 | . 3 . . . . . Secondary 1 | . . . . . 1 . Self-Inflicted Damage 210 | . 210 . . . . . Shots 3 | . 3 . . . . . Rammed . | . . . . . . . Targets Rammed . | . . . . . . . Kicked . | . . . . . . . Crushed . | . . . . . . . Highest Temperature 87 | . 87 . 27 28 54 84 Average Temperature 19 | . 19 . 15 16 19 24 Received Heat Transfer 2592 | . 219 . . 30 1368 975 Siege Activations . | . . . . . . . Martial Activations . | . . . . . . . Shielding Activations . | . . . . . . . Robots Disrupted . | . . . . . . . Combat Hostiles . | . . . . . . . Robots Corrupted 64 | . 9 . . 8 36 11 Combat Hostiles 22 | . 1 . . 2 15 4 Parts Fried 104 | . 16 . . 8 70 10 Impact Corruptions 164 | . 24 . . 20 90 30 Robots Melted . | . . . . . . . Combat Hostiles . | . . . . . . . Parts Melted 2 | . . . . . 1 1 Heat Transferred 946 | . 333 . . . 444 169 Parts Sabotaged . | . . . . . . . Parts Stolen . | . . . . . . . Parts Stripped . | . . . . . . . Power Chain Reactions . | . . . . . . . Alert | -11 -10 -10 -10 -9 -8 -8 ------- Run | Yrd Mat Min Exi Min Mat Sto Maximum Alert Level 3 | . 1 . . . 3 2 Low Security (%) 44 | 100 60 100 . 100 30 27 Level 1 31 | . 39 . . . 13 62 Level 2 16 | . . . . . 38 10 Level 3 6 | . . . . . 18 . Level 4 . | . . . . . . . Level 5 . | . . . . . . . High Security . | . . . . . . . Max Security . | . . . . . . . Peak Influence 767 | 5 276 72 . 93 767 471 Initial 321 | . . 72 . . 33 321 Average 270 | . 177 25 . 21 415 274 Influence Increases 3388 | 30 690 . . 208 1540 920 Destroy 0b10 Robot/C 1580 | . 320 . . 120 620 520 Destroy 0b10 Robot/NC 490 | 30 115 . . 45 210 90 Destroy Leader 392 | . 78 . . 20 162 132 Allied During Kill 22 | . . . . 8 9 5 Trap Triggered on 0b10 10 | . . . . . 10 . Successful Hack 15 | . 5 . . . 3 7 Disable Machine 105 | . 60 . . 15 . 30 Destroy Structure 99 | . 97 . . . 1 1 Lose Combat Pursuer 675 | . 15 . . . 525 135 Influence Decreases 2949 | 30 504 186 . 123 865 1241 Entered New Map 605 | . . 114 . . 52 439 Time Decay 1952 | 30 464 72 . 123 641 622 Lost Part 320 | . 40 . . . 140 140 Lost Ally 72 | . . . . . 32 40 Squads Dispatched 15 | . 4 . . . 6 5 Investigation 3 | . 2 . . . . 1 Extermination . | . . . . . . . Reinforcement 8 | . 2 . . . 5 1 Assault 4 | . . . . . 1 3 Garrison . | . . . . . . . Intercept . | . . . . . . . Searches Triggered . | . . . . . . . Construction Impeded 2 | . . . . . 2 . Haulers Reinforced . | . . . . . . . Active Scanning Responses . | . . . . . . . Cargo Convoy Interrupts . | . . . . . . . Stealth | -11 -10 -10 -10 -9 -8 -8 --------- Run | Yrd Mat Min Exi Min Mat Sto Distress Signals 7 | . 1 . . . 6 . Communications Jammed . | . . . . . . . Distress Signals . | . . . . . . . Times Spotted 147 | . 21 . . 6 69 51 Peak Tracking Total 9 | . 3 . . 3 6 9 Tactical Retreats 30 | . 1 . . . 24 5 Traps | -11 -10 -10 -10 -9 -8 -8 ------- Run | Yrd Mat Min Exi Min Mat Sto Traps Triggered 5 | . 3 . . . . 2 Indirectly . | . . . . . . . Trap Hack Attempts . | . . . . . . . Triggered . | . . . . . . . Disarmed . | . . . . . . . Reprogrammed . | . . . . . . . Reused 1 | . . . . . 1 . Traps Extracted . | . . . . . . . Installed 1 | . . . . . 1 . Triggered 1 | . . . . . 1 . Most Traps Carried 1 | . . . . 1 1 . Machines | -11 -10 -10 -10 -9 -8 -8 ---------- Run | Yrd Mat Min Exi Min Mat Sto Machines Disabled 7 | . 4 . . 1 . 2 Max in Single Turn 2 | . 2 . . . . 1 Machines Repaired . | . . . . . . . Machines Dismantled . | . . . . . . . Machines Sabotaged . | . . . . . . . Overloaded Fab Kills . | . . . . . . . Hacking | -11 -10 -10 -10 -9 -8 -8 --------- Run | Yrd Mat Min Exi Min Mat Sto Machines Accessed 12 | . 5 . 4 . 1 2 Terminals 6 | . 4 . . . . 2 Fabricators . | . . . . . . . Repair Stations 1 | . . . . . 1 . Recycling Units 1 | . 1 . . . . . Scanalyzers . | . . . . . . . Garrison Access . | . . . . . . . Total Hacks 73 | . 19 . 49 . 2 3 Successful 64 | . 11 . 49 . 2 2 Failed 9 | . 8 . . . . 1 Catastrophic . | . . . . . . . Database Lockouts . | . . . . . . . Manual 1 | . . . 1 . . . Terminals 12 | . 9 . . . . 3 Fabricators . | . . . . . . . Repair Stations 2 | . . . . . 2 . Recycling Units 10 | . 10 . . . . . Scanalyzers . | . . . . . . . Garrison Access . | . . . . . . . Terminal Hacks 56 | . 5 . 49 . . 2 Record 53 | . 4 . 49 . . . Open Door 2 | . . . . . . 2 Emergency Access Points 1 | . 1 . . . . . Fabricator Hacks . | . . . . . . . Repair Station Hacks 2 | . . . . . 2 . Scan Component 1 | . . . . . 1 . Repair 1 | . . . . . 1 . Recycling Unit Hacks 6 | . 6 . . . . . Recycle Component 4 | . 4 . . . . . Process 1 | . 1 . . . . . Report Inventory 1 | . 1 . . . . . Scanalyzer . | . . . . . . . Garrison Access Hacks . | . . . . . . . Unauthorized Hacks . | . . . . . . . Terminals . | . . . . . . . Fabricators . | . . . . . . . Repair Stations . | . . . . . . . Recycling Units . | . . . . . . . Scanalyzers . | . . . . . . . Garrison Access . | . . . . . . . Data Cores Recovered . | . . . . . . . Used . | . . . . . . . Hacking Detections 5 | . 4 . . . . 1 Full Trace Events 2 | . 1 . . . . 1 Feedback Events . | . . . . . . . Feedback Blocked . | . . . . . . . Robot Schematics Acquired . | . . . . . . . Robots Built . | . . . . . . . Authchips . | . . . . . . . Time . | . . . . . . . Total Robot Build Rating . | . . . . . . . Part Schematics Acquired . | . . . . . . . Parts Built . | . . . . . . . Authchips . | . . . . . . . Time . | . . . . . . . Total Part Build Rating . | . . . . . . . Parts Repaired 1 | . . . . . 1 . Time 26 | . . . . . 26 . Parts Recycled 4 | . 4 . . . . . Recycled Matter 74 | . 74 . . . . . Retrieved Matter . | . . . . . . . Retrieved Components . | . . . . . . . Parts Scanalyzed . | . . . . . . . Part Schematics Acquired . | . . . . . . . Parts Damaged . | . . . . . . . Bothacking | -11 -10 -10 -10 -9 -8 -8 ------------ Run | Yrd Mat Min Exi Min Mat Sto Used RIF Installer . | . . . . . . . Robots Hacked 3 | . 3 . . . . . Non-combat 3 | . 3 . . . . . Combat . | . . . . . . . Robot Hacks Applied 3 | . 3 . . . . . parse_system 1 | . 1 . . . . . no_distress 2 | . 2 . . . . . Relay Couplers Released . | . . . . . . . Fabnet Peak Effective % . | . . . . . . . Robots Rewired . | . . . . . . . Allies Hacked . | . . . . . . . Hacks Repelled . | . . . . . . . Allies | -11 -10 -10 -10 -9 -8 -8 -------- Run | Yrd Mat Min Exi Min Mat Sto Total Allies 6 | . . 1 . 3 . 2 Largest Group 3 | . . 1 1 3 2 2 Highest-Rated Group 62 | . . 31 31 40 32 62 Highest-Rated Ally 31 | . . 31 31 16 16 31 Total Orders 1 | . . . . 1 . . GUARD 1 | . . . . 1 . . Ally Attacks 55 | . . . . 11 24 20 Total Damage 539 | . . . . 63 291 185 Kills 6 | . . . . 1 4 1 Allies Corrupted . | . . . . . . . Allies Melted 1 | . . . . . . 1 Intel | -11 -10 -10 -10 -9 -8 -8 ------- Run | Yrd Mat Min Exi Min Mat Sto Active Infowar (turns) 657 | 83 574 . . . . . Terrain 657 | 83 574 . . . . . Robot Analysis Total . | . . . . . . . Derelict Logs Recovered 1 | . . . . 1 . . Drone Launches . | . . . . . . . Drone Recoveries . | . . . . . . . Exploration | -11 -10 -10 -10 -9 -8 -8 ------------- Run | Yrd Mat Min Exi Min Mat Sto Turns Passed 7716 | 316 1294 226 945 406 2417 2112 Spaces Moved 5363 | 183 1189 258 1109 391 1306 927 Core 6 | 5 . . . . 1 . Treads 975 | 118 . . . . 66 791 Legs 672 | . . . . . 672 . Wheels 3710 | 60 1189 258 1109 391 567 136 Hover . | . . . . . . . Flight . | . . . . . . . Fastest Speed 50 | 50 80 80 80 80 80 110 Average Speed 106 | 130 80 80 80 80 122 161 Slowest Speed 550 | 160 95 80 80 80 550 250 Overloaded Moves . | . . . . . . . Propulsion Burnouts . | . . . . . . . Robots Hopped . | . . . . . . . Potential Cave-ins . | . . . . . . . Cave-ins Triggered . | . . . . . . . Exploration Rate (%) 62 | 7 93 41 93 87 40 76 Regions Visited 6 Branch Regions 4 Pre-discovered Areas 1 | . . . 1 . . . Known Exits Taken . | . . . . . . . Unknown Exits Taken 6 | 1 1 1 1 1 1 . Scrap Searched 3 | . . 1 . 2 . . Spaces Dug . | . . . . . . . Terrain Destroyed 117 | . 117 . . . . . Melee . | . . . . . . . Projectile 1 | . 1 . . . . . AOE 116 | . 116 . . . . . Terrain Rammed . | . . . . . . . Walls Destroyed . | . . . . . . . Machines Disabled . | . . . . . . . Actions | -11 -10 -10 -10 -9 -8 -8 --------- Run | Yrd Mat Min Exi Min Mat Sto Total 6614 | 228 1394 277 1157 444 1808 1306 Wait 506 | 1 20 20 23 20 239 183 Move 5357 | 182 1188 257 1108 390 1305 927 Hop . | . . . . . . . Pick Up 107 | 14 43 . 1 4 26 19 Fast Attach 13 | . . . . . 8 5 Attach 45 | 7 8 . . . 17 13 Detach . | . . . . . . . Swap 40 | 3 19 . 1 3 7 7 Drop 67 | 2 29 . 1 4 21 10 Fire 84 | 19 42 . 6 1 11 5 Melee 377 | . 45 . . 22 173 137 Ram . | . . . . . . . Kick . | . . . . . . . Crush . | . . . . . . . Escape Stasis . | . . . . . . . Rewire 17 | . . . 17 . . . Trap 1 | . . . . . 1 . Miscellaneous . | . . . . . . . Route ------- -11/Scrapyard -10/Materials (discovered 5 exits: [*Mat x3] / [*Min x2]) -10/Mines -10/Exiles (discovered 2 exits: *Min x2) -9/Mines (discovered 2 exits: *Mat x2) -8/Materials (discovered 3 exits: *Fac / *Sto x2) -8/Storage History --------- Turn | Location | Event 5 | -11/Scrapyard | Discovered new exit (range 16) 317 | -11/Scrapyard | Entered Materials 318 | -10/Materials | Build established: Mutant 534 | -10/Materials | Met 8R-AWN 553 | -10/Materials | Discovered new exit (range 10) 596 | -10/Materials | Discovered new exit (range 13) 840 | -10/Materials | Discovered new exit (range 15) 977 | -10/Materials | Discovered new exit (range 13) 1109 | -10/Materials | Core integrity fell below 50% 1481 | -10/Materials | Discovered new exit (range 13) 1611 | -10/Materials | Entered Mines 1612 | -10/Mines | Followed 8R-AWN into the Mines 1668 | -10/Mines | Discovered new exit (range 5) 1692 | -10/Mines | Received a Mining Laser from a helpful Derelict 1837 | -10/Mines | Entered Exiles 1837 | -10/Exiles | Accompanied by 1 ally 1869 | -10/Exiles | Discovered new exit (range 14) 1921 | -10/Exiles | Welcomed by 8R-AWN 1938 | -10/Exiles | Met EX-HEX 2002 | -10/Exiles | Met EX-DEC 2020 | -10/Exiles | Learned location of Zion (-7) 2043 | -10/Exiles | Discovered new exit (range 12) 2107 | -10/Exiles | Met EX-BIN 2255 | -10/Exiles | Visited The Gauntlet 2463 | -10/Exiles | Aligned with FarCom system 2463 | -10/Exiles | Given EX-Vault access code 2782 | -10/Exiles | Entered Mines 2849 | -9/Mines | Assisted by bots powering up and referring to "LRC-V3" 2896 | -9/Mines | Discovered new exit (range 5) 2967 | -9/Mines | Learned 2 Materials zone layouts 3081 | -9/Mines | Found a hidden stash of uninstalled traps 3132 | -9/Mines | Discovered new exit (range 7) 3188 | -9/Mines | Entered Materials 3188 | -8/Materials | Accompanied by 2 allies 3188 | -8/Materials | Evolved 4 slots: Propulsion x1, Utility x2, Weapon x1 3189 | -8/Materials | Identified exit to Factory 3197 | -8/Materials | Discovered new exit (range 16) 3213 | -8/Materials | Discovered new exit (range 13) 4688 | -8/Materials | Repaired Core Shielding 5018 | -8/Materials | Core integrity fell below 50% 5544 | -8/Materials | Lost 5 parts (2n1u2w) 5588 | -8/Materials | First assault squad dispatched 5605 | -8/Materials | Entered Storage 6389 | -8/Storage | Met a pair of Derelict thieves 6583 | -8/Storage | Core integrity fell below 20% 7605 | -8/Storage | First assault squad dispatched 7717 | -8/Storage | Destroyed by G-47 Trooper with Particle Gun Last Messages --------------- 07635_ Arm. Treads destroyed. 07636_ Y-45 Defender destroyed. 07642_ C-30 ARC bursts open, deploying its payload. 07642_ G-50 Soldier unfolds itself. 07642_ B-36 Bruiser unfolds itself. 07642_ L-31 Rogue unfolds itself. 07642_ G-47 Trooper unfolds itself. 07642_ I-25 Savior unfolds itself. 07669_ Imp. Assault Rifle severed. 07677_ Arm. Treads destroyed. 07679_ Remote Shield destroyed. 07681_ L-31 Rogue Imp. Aluminum Leg severed. 07682_ System corrupted: Energy discharge (-12). 07686_ L-31 Rogue destroyed. 07694_ B-36 Bruiser destroyed. 07707_ Sml. Storage Unit destroyed. 07711_ Cld. Ion Engine destroyed. 07715_ Arm. Treads destroyed. 07717_ Critical hit (Burn: +37). Map ----- +----------------------------------------------------+ | ?# #???????????????????????????# #?? | | ?# #???????????????????????????# #?? | | ?# #???????????????????????????#######?? | | ?# #???????????????????????????????????? | | ?# #???????????????????????????????????? | | ?# #???????????????????????????????????? | | ?# #???????????????????????????????????? | | ?# #????????????????????????????######## | | ?# #????????????????????????????# | | ?# #????????????????????????????# | | ?# #??###???????????????????????# | | ?# #?##T#####???????????????????######+# | | ?# #?#/[%=[[#???????????????????????? | | ?# #?#%=!]]]#????????????????????????" | | ## ### %#####???????????????????????"" | | # " ###+#######?????????????????????"" ! | | # "%" % [!#####???????????????? ! | | # " [%+*! #????????????????""" | | # !#T###???#??????????????" | | # ####### ###???"""#?????????????" | | #######?????# ######"T"######???????? | | ????????????#abi# ?????????### | | ????????????# Yg#% [!| Y??????????? | | ????????????# =g#/ !!| #??????????? | | ????????????# =g%"T" !! #??????????? | | ????????????# g#@""" #??????????? | | ????????????# #= #??????????? | | ????????????# ################?????????? | | ????????????# ## #?????????? | | ???????????? ! # ! #?????????? | | ???????????# # = #?????????? | | ???????????+ + #?????????? | | ???????????# #! #?????????? | | ???????????# # [ ! ! #?????????? | | ???????????##############+######?????????? | | ?????????????????? # #??????????????? | | ?????????????????" """" # ##########+##### | | ?????????????????" """" # !!% | | ?????????????????" """" + !! | | ?????????????????" """" # =[% | | ???????????????? ################## | | ??????????????? #????????????????? | | ???????????????#########?????????????????? | | ?????????????????????????????????????????? | | | | | | | | | | | | | +----------------------------------------------------+ Best States ------------- Heat Dissipation 47 Energy Generation 15 Energy Capacity 280 Matter Stores 300 Matter Capacity 300 Sight Range 16 Terrain Scan Range 16 Terrain Scan Density 10 Power Amplification 20 Additional Mass Support 12 Armor Coverage 225 Core Shielding 20 Evasion (%) 57 Targeting Accuracy 8 Melee Accuracy 5 Recoil Reduction 3 Item Schematics ----------------- None Robot Schematics ------------------ None Fabricated ------------ Nothing Repaired ---------- Core Shielding | 8% | -8/Materials Alien Tech Used ----------------- None Achievements -------------- Librarian Significant Disruption Tourist Challenges ------------ None Game ------ Seed MicrowarpInertialCompactor Manual? 0 Play Time 01:59:00 Cumulative 7.2 hours Start 2025.05.30 @ 15:15:59 End 2025.05.30 @ 17:28:56 Sessions 1 Manual Loads 0 Difficulty Rogue Special Mode None Game No. 8 Rogue 8 Adventurer 0 Explorer 0 Win Type - Total 0 Types 0/0/0/0/0/0/0/0/0/0 Lore% 6 Gallery% 9 Achievement% 9 Wizard Run 0 Options --------- Layout 1 ASCII 0 Keyboard 0 Movement Numpad Keybinds 0 Fullscreen 1 Font 24/Smallcaps Map View 50x35 Zoom Use 0% Tactical HUD 1 Map Filters NONE Filters NONE Steam 1 RUN: 75dc558c-8e2b-4f39-9acc-0f114a8d3ceb